[Event "January 2 Late 2024"]
[Site "https://www.chess.com"]
[Date "2024.01.02"]
[Round "3"]
[White "Kochiev, Ivan"]
[Black "Chiu, Isaac"]
[Result "1-0"]
[Board "57"]
[TimeControl "180+1"]
[WhiteFideId "2917890"]
[BlackFideId "30900654"]
[WhiteElo "2544"]
[BlackElo "2779"]
[WhiteTeam "BUL"]
[BlackTeam "USA"]
[WhiteClock "0:00:14"]
[BlackClock "0:00:04"]

1. e4 {[%clk 0:03:00]}  e6 {[%clk 0:02:59]} 2. d4 {[%clk 0:02:58]}  d5 {[%clk 0:02:59]} 3. Nd2 {[%clk 0:02:58]}  c5 {[%clk 0:02:58]} 4. exd5 {[%clk 0:02:57]}  exd5 {[%clk 0:02:58]} 5. Ngf3 {[%clk 0:02:56]}  Nc6 {[%clk 0:02:59]} 6. Bb5 {[%clk 0:02:56]}  Qe7+ {[%clk 0:02:59]} 7. Qe2 {[%clk 0:02:56]}  Qxe2+ {[%clk 0:02:59]} 8. Kxe2 {[%clk 0:02:57]}  a6 {[%clk 0:02:57]} 9. Bxc6+ {[%clk 0:02:54]}  bxc6 {[%clk 0:02:58]} 10. dxc5 {[%clk 0:02:55]}  Bxc5 {[%clk 0:02:56]} 11. Nb3 {[%clk 0:02:56]}  Bd6 {[%clk 0:02:54]} 12. Be3 {[%clk 0:02:55]}  Ne7 {[%clk 0:02:52]} 13. Rhe1 {[%clk 0:02:55]}  O-O {[%clk 0:02:46]} 14. Bc5 {[%clk 0:02:54]}  Bxc5 {[%clk 0:02:39]} 15. Nxc5 {[%clk 0:02:53]}  Rb8 {[%clk 0:02:37]} 16. b3 {[%clk 0:02:50]}  Nf5 {[%clk 0:02:28]} 17. Kd3 {[%clk 0:02:42]}  Rb5 {[%clk 0:02:14]} 18. Na4 {[%clk 0:02:36]}  a5 {[%clk 0:02:08]} 19. Nd4 {[%clk 0:02:22]}  Nxd4 {[%clk 0:02:06]} 20. Kxd4 {[%clk 0:02:23]}  Be6 {[%clk 0:01:50]} 21. c3 {[%clk 0:02:19]}  Re8 {[%clk 0:01:07]} 22. Nc5 {[%clk 0:02:17]}  Kf8 {[%clk 0:01:07]} 23. Re3 {[%clk 0:02:13]}  Bc8 {[%clk 0:01:03]} 24. Rae1 {[%clk 0:02:11]}  Rxe3 {[%clk 0:01:01]} 25. Rxe3 {[%clk 0:02:12]}  Rb8 {[%clk 0:00:52]} 26. Nd3 {[%clk 0:02:02]}  Rb5 {[%clk 0:00:44]} 27. Ne5 {[%clk 0:01:55]}  c5+ {[%clk 0:00:20]} 28. Kxd5 {[%clk 0:01:40]}  f6 {[%clk 0:00:14]} 29. Kc4 {[%clk 0:01:13]}  Rb8 {[%clk 0:00:14]} 30. Nc6 {[%clk 0:01:06]}  Rb7 {[%clk 0:00:10]} 31. Kxc5 {[%clk 0:01:04]}  Rc7 {[%clk 0:00:11]} 32. Kb6 {[%clk 0:00:54]}  Rb7+ {[%clk 0:00:10]} 33. Kxa5 {[%clk 0:00:34]}  Bd7 {[%clk 0:00:11]} 34. Nd4 {[%clk 0:00:28]}  Ra7+ {[%clk 0:00:11]} 35. Kb6 {[%clk 0:00:28]}  Rxa2 {[%clk 0:00:12]} 36. Kc7 {[%clk 0:00:26]}  Bg4 {[%clk 0:00:10]} 37. f3 {[%clk 0:00:24]}  Bh5 {[%clk 0:00:10]} 38. g4 {[%clk 0:00:18]}  Bg6 {[%clk 0:00:11]} 39. b4 {[%clk 0:00:19]}  Rxh2 {[%clk 0:00:11]} 40. b5 {[%clk 0:00:19]}  Rb2 {[%clk 0:00:11]} 41. b6 {[%clk 0:00:20]}  h5 {[%clk 0:00:08]} 42. gxh5 {[%clk 0:00:19]}  Bxh5 {[%clk 0:00:09]} 43. b7 {[%clk 0:00:19]}  g5 {[%clk 0:00:08]} 44. b8=Q+ {[%clk 0:00:18]}  Rxb8 {[%clk 0:00:09]} 45. Kxb8 {[%clk 0:00:19]}  Kf7 {[%clk 0:00:09]} 46. Kc7 {[%clk 0:00:19]}  Kg6 {[%clk 0:00:09]} 47. Kd6 {[%clk 0:00:19]}  f5 {[%clk 0:00:09]} 48. c4 {[%clk 0:00:17]}  f4 {[%clk 0:00:09]} 49. Re6+ {[%clk 0:00:16]}  Kf7 {[%clk 0:00:09]} 50. Re5 {[%clk 0:00:16]}  Kf6 {[%clk 0:00:09]} 51. c5 {[%clk 0:00:14]}  g4 {[%clk 0:00:05]} 52. Rxh5 {[%clk 0:00:14]}  g3 {[%clk 0:00:04]} 53. Rh1 {[%clk 0:00:14]} 1-0

[Event "January 2 Late 2024"]
[Site "https://www.chess.com"]
[Date "2024.01.02"]
[Round "3"]
[White "Tabuenca Mendataurigoitia, Daniel"]
[Black "Samant Aditya S"]
[Result "0-1"]
[Board "58"]
[TimeControl "180+1"]
[WhiteFideId "24563617"]
[BlackFideId "35080580"]
[WhiteElo "2532"]
[BlackElo "2724"]
[WhiteTeam "ESP"]
[BlackTeam "IND"]
[WhiteClock "0:00:00"]
[BlackClock "0:00:13"]

1. Nf3 {[%clk 0:03:00]}  d6 {[%clk 0:03:00]} 2. g3 {[%clk 0:02:59]}  g6 {[%clk 0:03:01]} 3. Bg2 {[%clk 0:02:59]}  Bg7 {[%clk 0:03:02]} 4. O-O {[%clk 0:02:59]}  e5 {[%clk 0:03:03]} 5. c4 {[%clk 0:02:48]}  Nc6 {[%clk 0:02:59]} 6. Nc3 {[%clk 0:02:48]}  f5 {[%clk 0:03:00]} 7. d3 {[%clk 0:02:37]}  Nf6 {[%clk 0:02:59]} 8. Rb1 {[%clk 0:02:35]}  O-O {[%clk 0:02:58]} 9. b4 {[%clk 0:02:35]}  e4 {[%clk 0:02:55]} 10. Nd2 {[%clk 0:02:27]}  exd3 {[%clk 0:02:27]} 11. exd3 {[%clk 0:02:25]}  Nd4 {[%clk 0:02:27]} 12. Nb3 {[%clk 0:02:21]}  Nxb3 {[%clk 0:02:24]} 13. Qxb3 {[%clk 0:02:22]}  Kh8 {[%clk 0:02:23]} 14. Bb2 {[%clk 0:02:16]}  c6 {[%clk 0:02:18]} 15. b5 {[%clk 0:02:16]}  Bd7 {[%clk 0:02:18]} 16. Rfe1 {[%clk 0:02:08]}  Ng4 {[%clk 0:02:10]} 17. Ne2 {[%clk 0:01:50]}  f4 {[%clk 0:01:10]} 18. Bxg7+ {[%clk 0:01:32]}  Kxg7 {[%clk 0:01:11]} 19. Nxf4 {[%clk 0:01:16]}  Rxf4 {[%clk 0:01:10]} 20. gxf4 {[%clk 0:01:17]}  Qh4 {[%clk 0:01:10]} 21. Qb2+ {[%clk 0:00:53]}  Kh6 {[%clk 0:01:10]} 22. h3 {[%clk 0:00:50]}  Nf6 {[%clk 0:01:09]} 23. Re3 {[%clk 0:00:45]}  Nh5 {[%clk 0:01:06]} 24. Qd2 {[%clk 0:00:24]}  Nxf4 {[%clk 0:01:04]} 25. Re4 {[%clk 0:00:20]}  g5 {[%clk 0:01:04]} 26. Rbe1 {[%clk 0:00:15]}  Rf8 {[%clk 0:00:54]} 27. R1e3 {[%clk 0:00:12]}  Rf6 {[%clk 0:00:46]} 28. Rg3 {[%clk 0:00:08]}  Bf5 {[%clk 0:00:37]} 29. Ree3 {[%clk 0:00:04]}  d5 {[%clk 0:00:31]} 30. Qb2 {[%clk 0:00:03]}  Rf7 {[%clk 0:00:20]} 31. Qe5 {[%clk 0:00:02]}  Bg6 {[%clk 0:00:19]} 32. Rxg5 {[%clk 0:00:01]}  Qxg5 {[%clk 0:00:19]} 33. Qxg5+ {[%clk 0:00:01]}  Kxg5 {[%clk 0:00:20]} 34. cxd5 {[%clk 0:00:02]}  cxd5 {[%clk 0:00:19]} 35. d4 {[%clk 0:00:02]}  Nxg2 {[%clk 0:00:18]} 36. Kxg2 {[%clk 0:00:02]}  Rf4 {[%clk 0:00:15]} 37. Re5+ {[%clk 0:00:01]}  Kf6 {[%clk 0:00:13]} 38. Re7 {[%clk 0:00:00]}  Kxe7 {[%clk 0:00:13]} 0-1

[Event "January 2 Late 2024"]
[Site "https://www.chess.com"]
[Date "2024.01.02"]
[Round "3"]
[White "Rosen, Eric"]
[Black "Mazzilli, Piero"]
[Result "1-0"]
[Board "63"]
[TimeControl "180+1"]
[WhiteFideId "2032562"]
[BlackFideId "807087"]
[WhiteElo "2675"]
[BlackElo "2337"]
[WhiteTeam "USA"]
[BlackTeam "ITA"]
[WhiteClock "0:01:08"]
[BlackClock "0:00:00"]

1. e4 {[%clk 0:03:00]}  c5 {[%clk 0:02:59]} 2. d4 {[%clk 0:03:01]}  cxd4 {[%clk 0:02:59]} 3. c3 {[%clk 0:03:01]}  d5 {[%clk 0:02:57]} 4. exd5 {[%clk 0:03:00]}  Qxd5 {[%clk 0:02:57]} 5. cxd4 {[%clk 0:03:01]}  Nc6 {[%clk 0:02:56]} 6. Nf3 {[%clk 0:03:01]}  e6 {[%clk 0:02:56]} 7. Nc3 {[%clk 0:02:56]}  Qd6 {[%clk 0:02:56]} 8. Bd3 {[%clk 0:02:51]}  Nf6 {[%clk 0:02:55]} 9. O-O {[%clk 0:02:51]}  Be7 {[%clk 0:02:55]} 10. a3 {[%clk 0:02:51]}  a6 {[%clk 0:02:48]} 11. Re1 {[%clk 0:02:50]}  O-O {[%clk 0:02:48]} 12. Bg5 {[%clk 0:02:46]}  Rd8 {[%clk 0:02:46]} 13. Ne4 {[%clk 0:02:27]}  Nxe4 {[%clk 0:02:37]} 14. Bxe4 {[%clk 0:02:24]}  Bxg5 {[%clk 0:01:52]} 15. Nxg5 {[%clk 0:02:24]}  g6 {[%clk 0:01:51]} 16. Qf3 {[%clk 0:02:01]}  f5 {[%clk 0:00:52]} 17. Bxc6 {[%clk 0:01:54]}  bxc6 {[%clk 0:00:53]} 18. Rac1 {[%clk 0:01:43]}  Rb8 {[%clk 0:00:41]} 19. b4 {[%clk 0:01:38]}  Qxd4 {[%clk 0:00:23]} 20. Qxc6 {[%clk 0:01:30]}  Rb6 {[%clk 0:00:20]} 21. Qc7 {[%clk 0:01:23]}  Rb7 {[%clk 0:00:04]} 22. Qxc8 {[%clk 0:01:07]}  Rxc8 {[%clk 0:00:01]} 23. Rxc8+ {[%clk 0:01:08]}  Kg7 {[%clk 0:00:01]} 24. Nxe6+ {[%clk 0:01:08]}  Kf6 {[%clk 0:00:00]} 25. Nxd4 {[%clk 0:01:08]} 1-0

[Event "January 2 Late 2024"]
[Site "https://www.chess.com"]
[Date "2024.01.02"]
[Round "3"]
[White "Jakubowski, Krzysztof"]
[Black "Ardila, Oscar Humberto"]
[Result "1-0"]
[Board "64"]
[TimeControl "180+1"]
[WhiteFideId "1112848"]
[BlackFideId "4404742"]
[WhiteElo "2659"]
[BlackElo "2325"]
[WhiteTeam "POL"]
[BlackTeam "COL"]
[WhiteClock "0:00:34"]
[BlackClock "0:00:08"]

1. e4 {[%clk 0:03:00]}  e5 {[%clk 0:02:59]} 2. Nf3 {[%clk 0:03:00]}  Nf6 {[%clk 0:03:00]} 3. Nc3 {[%clk 0:02:55]}  Nc6 {[%clk 0:02:59]} 4. g3 {[%clk 0:02:49]}  Bc5 {[%clk 0:02:57]} 5. Bg2 {[%clk 0:02:48]}  d6 {[%clk 0:02:57]} 6. h3 {[%clk 0:02:43]}  a6 {[%clk 0:02:57]} 7. O-O {[%clk 0:02:40]}  O-O {[%clk 0:02:56]} 8. d3 {[%clk 0:02:39]}  h6 {[%clk 0:02:56]} 9. Nh4 {[%clk 0:02:36]}  Qe7 {[%clk 0:02:52]} 10. Kh2 {[%clk 0:02:36]}  g5 {[%clk 0:02:47]} 11. Nf5 {[%clk 0:02:34]}  Bxf5 {[%clk 0:02:47]} 12. exf5 {[%clk 0:02:34]}  Rad8 {[%clk 0:02:43]} 13. Nd5 {[%clk 0:02:25]}  Nxd5 {[%clk 0:02:42]} 14. Bxd5 {[%clk 0:02:26]}  Rb8 {[%clk 0:02:30]} 15. c3 {[%clk 0:02:23]}  Qf6 {[%clk 0:02:29]} 16. Be4 {[%clk 0:02:17]}  Ne7 {[%clk 0:02:26]} 17. g4 {[%clk 0:02:15]}  d5 {[%clk 0:02:24]} 18. Bg2 {[%clk 0:02:15]}  Bd6 {[%clk 0:02:21]} 19. Kg1 {[%clk 0:02:11]}  c6 {[%clk 0:02:20]} 20. a4 {[%clk 0:02:09]}  Rfe8 {[%clk 0:02:19]} 21. a5 {[%clk 0:02:08]}  Kg7 {[%clk 0:02:18]} 22. Bd2 {[%clk 0:02:07]}  Ng8 {[%clk 0:02:18]} 23. Re1 {[%clk 0:02:03]}  Qd8 {[%clk 0:02:17]} 24. c4 {[%clk 0:02:03]}  d4 {[%clk 0:02:14]} 25. b4 {[%clk 0:02:01]}  Nf6 {[%clk 0:02:11]} 26. Bf3 {[%clk 0:01:56]}  Qe7 {[%clk 0:02:11]} 27. Qb3 {[%clk 0:01:54]}  Bc7 {[%clk 0:02:05]} 28. Kg2 {[%clk 0:01:54]}  Qd6 {[%clk 0:02:02]} 29. Be4 {[%clk 0:01:47]}  Rh8 {[%clk 0:01:58]} 30. b5 {[%clk 0:01:43]}  c5 {[%clk 0:01:22]} 31. Rh1 {[%clk 0:01:19]}  Nxe4 {[%clk 0:01:09]} 32. dxe4 {[%clk 0:01:19]}  Bd8 {[%clk 0:01:07]} 33. Rab1 {[%clk 0:01:16]}  Bf6 {[%clk 0:01:05]} 34. Qf3 {[%clk 0:01:12]}  Rhd8 {[%clk 0:00:58]} 35. Rb3 {[%clk 0:01:11]}  axb5 {[%clk 0:00:43]} 36. Rxb5 {[%clk 0:01:10]}  Qc6 {[%clk 0:00:41]} 37. Rhb1 {[%clk 0:01:07]}  Qc7 {[%clk 0:00:23]} 38. Qb3 {[%clk 0:01:04]}  Qc6 {[%clk 0:00:23]} 39. Kf3 {[%clk 0:01:03]}  Rd7 {[%clk 0:00:22]} 40. Rb6 {[%clk 0:01:02]}  Qc7 {[%clk 0:00:20]} 41. a6 {[%clk 0:01:01]}  Rdd8 {[%clk 0:00:18]} 42. Rxb7 {[%clk 0:00:58]}  Rxb7 {[%clk 0:00:17]} 43. axb7 {[%clk 0:00:58]}  Rb8 {[%clk 0:00:17]} 44. Qb6 {[%clk 0:00:58]}  Qd7 {[%clk 0:00:15]} 45. Qb5 {[%clk 0:00:57]}  Qc7 {[%clk 0:00:15]} 46. Qb6 {[%clk 0:00:57]}  Bd8 {[%clk 0:00:12]} 47. Qxc7 {[%clk 0:00:53]}  Bxc7 {[%clk 0:00:13]} 48. Rb5 {[%clk 0:00:53]}  Bd6 {[%clk 0:00:12]} 49. Ba5 {[%clk 0:00:51]}  Kf8 {[%clk 0:00:09]} 50. Bb6 {[%clk 0:00:41]}  Ke7 {[%clk 0:00:08]} 51. Ba7 {[%clk 0:00:41]}  Rd8 {[%clk 0:00:04]} 52. b8=Q {[%clk 0:00:41]}  Bxb8 {[%clk 0:00:04]} 53. Bxb8 {[%clk 0:00:38]}  d3 {[%clk 0:00:03]} 54. Bc7 {[%clk 0:00:33]}  d2 {[%clk 0:00:03]} 55. Bxd8+ {[%clk 0:00:32]}  Kxd8 {[%clk 0:00:03]} 56. Rb1 {[%clk 0:00:33]}  Kc7 {[%clk 0:00:02]} 57. Rd1 {[%clk 0:00:33]}  Kb6 {[%clk 0:00:03]} 58. Rxd2 {[%clk 0:00:34]}  Ka5 {[%clk 0:00:04]} 59. Rb2 {[%clk 0:00:34]}  Ka4 {[%clk 0:00:04]} 60. Rb5 {[%clk 0:00:34]}  Ka3 {[%clk 0:00:05]} 61. Ke3 {[%clk 0:00:34]}  f6 {[%clk 0:00:06]} 62. Kd3 {[%clk 0:00:35]}  Ka2 {[%clk 0:00:07]} 63. Kc3 {[%clk 0:00:34]}  Ka3 {[%clk 0:00:08]} 64. Ra5# {[%clk 0:00:34]} 1-0

[Event "January 2 Late 2024"]
[Site "https://www.chess.com"]
[Date "2024.01.02"]
[Round "3"]
[White "CamillaEffect"]
[Black "Rodriguez Avila, Alvaro"]
[Result "1-0"]
[Board "66"]
[TimeControl "180+1"]
[BlackFideId "24570249"]
[WhiteElo "2626"]
[BlackElo "2306"]
[BlackTeam "ESP"]
[WhiteClock "0:00:03"]
[BlackClock "0:00:03"]

1. e4 {[%clk 0:03:00]}  c6 {[%clk 0:02:59]} 2. d4 {[%clk 0:03:00]}  d6 {[%clk 0:02:58]} 3. c4 {[%clk 0:03:00]}  g6 {[%clk 0:02:58]} 4. Nc3 {[%clk 0:03:00]}  Bg7 {[%clk 0:02:59]} 5. f4 {[%clk 0:03:00]}  e5 {[%clk 0:02:54]} 6. Nf3 {[%clk 0:02:52]}  Bg4 {[%clk 0:02:53]} 7. dxe5 {[%clk 0:02:49]}  Bxf3 {[%clk 0:02:51]} 8. Qxf3 {[%clk 0:02:44]}  dxe5 {[%clk 0:02:51]} 9. f5 {[%clk 0:02:37]}  Nd7 {[%clk 0:02:51]} 10. Be3 {[%clk 0:02:36]}  Ngf6 {[%clk 0:02:47]} 11. Be2 {[%clk 0:02:33]}  Qe7 {[%clk 0:02:46]} 12. O-O {[%clk 0:02:32]}  O-O {[%clk 0:02:37]} 13. g4 {[%clk 0:02:29]}  Qb4 {[%clk 0:02:00]} 14. g5 {[%clk 0:02:19]}  Nh5 {[%clk 0:02:00]} 15. f6 {[%clk 0:02:17]}  Bh8 {[%clk 0:02:01]} 16. Rad1 {[%clk 0:01:56]}  Rad8 {[%clk 0:01:59]} 17. Rd2 {[%clk 0:01:47]}  Nc5 {[%clk 0:01:51]} 18. a3 {[%clk 0:01:37]}  Qb3 {[%clk 0:01:40]} 19. Rxd8 {[%clk 0:01:32]}  Rxd8 {[%clk 0:01:40]} 20. Bxc5 {[%clk 0:01:31]}  Nf4 {[%clk 0:01:41]} 21. Rd1 {[%clk 0:01:14]}  Rxd1+ {[%clk 0:01:38]} 22. Nxd1 {[%clk 0:00:54]}  Qc2 {[%clk 0:01:37]} 23. Kf1 {[%clk 0:00:40]}  h6 {[%clk 0:01:37]} 24. h4 {[%clk 0:00:40]}  hxg5 {[%clk 0:01:38]} 25. hxg5 {[%clk 0:00:41]}  b6 {[%clk 0:00:58]} 26. Bd6 {[%clk 0:00:38]}  Ne6 {[%clk 0:00:58]} 27. Qe3 {[%clk 0:00:26]}  a6 {[%clk 0:00:13]} 28. Bxe5 {[%clk 0:00:23]}  b5 {[%clk 0:00:14]} 29. cxb5 {[%clk 0:00:21]}  axb5 {[%clk 0:00:14]} 30. Bg3 {[%clk 0:00:12]}  c5 {[%clk 0:00:11]} 31. Be1 {[%clk 0:00:10]}  Nd4 {[%clk 0:00:11]} 32. Qd3 {[%clk 0:00:07]}  Qc1 {[%clk 0:00:10]} 33. Bf2 {[%clk 0:00:05]}  Ne6 {[%clk 0:00:08]} 34. Be3 {[%clk 0:00:04]}  Qa1 {[%clk 0:00:07]} 35. Qd7 {[%clk 0:00:04]}  b4 {[%clk 0:00:05]} 36. Qe8+ {[%clk 0:00:04]}  Kh7 {[%clk 0:00:04]} 37. Qxf7+ {[%clk 0:00:04]}  Ng7 {[%clk 0:00:05]} 38. fxg7 {[%clk 0:00:03]}  Bxg7 {[%clk 0:00:06]} 39. Bxc5 {[%clk 0:00:03]}  Qc1 {[%clk 0:00:04]} 40. Bf8 {[%clk 0:00:03]}  Qf4+ {[%clk 0:00:03]} 41. Qxf4 {[%clk 0:00:03]} 1-0

[Event "January 2 Late 2024"]
[Site "https://www.chess.com"]
[Date "2024.01.02"]
[Round "3"]
[White "Aronian, Levon"]
[Black "Tagliati, Eleonore"]
[Result "1-0"]
[Board "68"]
[TimeControl "180+1"]
[WhiteFideId "13300474"]
[BlackFideId "45172234"]
[WhiteElo "3102"]
[BlackElo "2202"]
[WhiteTeam "USA"]
[BlackTeam "FRA"]
[WhiteClock "0:01:34"]
[BlackClock "0:00:03"]

1. e4 {[%clk 0:03:00]}  c5 {[%clk 0:02:59]} 2. Nf3 {[%clk 0:03:01]}  Nc6 {[%clk 0:02:59]} 3. Bb5 {[%clk 0:03:00]}  e6 {[%clk 0:02:59]} 4. Bxc6 {[%clk 0:03:00]}  bxc6 {[%clk 0:02:59]} 5. d3 {[%clk 0:03:01]}  Ne7 {[%clk 0:02:58]} 6. Qe2 {[%clk 0:02:59]}  f6 {[%clk 0:02:47]} 7. h4 {[%clk 0:02:55]}  e5 {[%clk 0:02:44]} 8. h5 {[%clk 0:02:55]}  h6 {[%clk 0:02:40]} 9. Nh4 {[%clk 0:02:44]}  d6 {[%clk 0:02:29]} 10. Nc3 {[%clk 0:02:37]}  Be6 {[%clk 0:02:28]} 11. f4 {[%clk 0:02:36]}  Rb8 {[%clk 0:02:04]} 12. b3 {[%clk 0:02:33]}  Bf7 {[%clk 0:01:51]} 13. Bd2 {[%clk 0:02:22]}  Qc7 {[%clk 0:01:49]} 14. g4 {[%clk 0:02:18]}  d5 {[%clk 0:01:44]} 15. O-O {[%clk 0:02:13]}  d4 {[%clk 0:01:26]} 16. Na4 {[%clk 0:02:12]}  Rb5 {[%clk 0:01:26]} 17. fxe5 {[%clk 0:01:53]}  Qxe5 {[%clk 0:01:26]} 18. Bf4 {[%clk 0:01:52]}  Qe6 {[%clk 0:01:25]} 19. Rae1 {[%clk 0:01:50]}  g5 {[%clk 0:01:06]} 20. hxg6 {[%clk 0:01:49]}  Nxg6 {[%clk 0:01:07]} 21. Nf5 {[%clk 0:01:48]}  Ne5 {[%clk 0:00:46]} 22. Kh1 {[%clk 0:01:46]}  Rg8 {[%clk 0:00:44]} 23. Rg1 {[%clk 0:01:45]}  Rg6 {[%clk 0:00:42]} 24. Ref1 {[%clk 0:01:43]}  Kd7 {[%clk 0:00:34]} 25. Nb2 {[%clk 0:01:43]}  Ke8 {[%clk 0:00:33]} 26. Nc4 {[%clk 0:01:43]}  Nxc4 {[%clk 0:00:22]} 27. bxc4 {[%clk 0:01:44]}  Rb7 {[%clk 0:00:20]} 28. Rb1 {[%clk 0:01:44]}  Qd7 {[%clk 0:00:20]} 29. e5 {[%clk 0:01:41]}  fxe5 {[%clk 0:00:18]} 30. Qxe5+ {[%clk 0:01:39]}  Re6 {[%clk 0:00:19]} 31. Qh8 {[%clk 0:01:36]}  Rxb1 {[%clk 0:00:18]} 32. Rxb1 {[%clk 0:01:36]}  Rg6 {[%clk 0:00:03]} 33. Rb8+ {[%clk 0:01:34]}  Qd8 {[%clk 0:00:03]} 34. Rxd8+ {[%clk 0:01:34]} 1-0

[Event "January 2 Late 2024"]
[Site "https://www.chess.com"]
[Date "2024.01.02"]
[Round "3"]
[White "Xiong, Jeffery"]
[Black "Jaiveer Mahendru"]
[Result "1-0"]
[Board "69"]
[TimeControl "180+1"]
[WhiteFideId "2047640"]
[BlackFideId "25611151"]
[WhiteElo "3012"]
[BlackElo "2510"]
[WhiteTeam "USA"]
[BlackTeam "IND"]
[WhiteClock "0:02:21"]
[BlackClock "0:00:05"]

1. d4 {[%clk 0:03:00]}  Nf6 {[%clk 0:02:59]} 2. Nf3 {[%clk 0:03:01]}  g6 {[%clk 0:02:54]} 3. Nbd2 {[%clk 0:03:01]}  Bg7 {[%clk 0:02:54]} 4. e4 {[%clk 0:03:01]}  d6 {[%clk 0:02:53]} 5. Bd3 {[%clk 0:03:01]}  O-O {[%clk 0:02:49]} 6. O-O {[%clk 0:03:02]}  Nc6 {[%clk 0:02:32]} 7. c3 {[%clk 0:03:02]}  e5 {[%clk 0:02:29]} 8. dxe5 {[%clk 0:03:03]}  dxe5 {[%clk 0:02:28]} 9. Nc4 {[%clk 0:03:01]}  Qe7 {[%clk 0:02:24]} 10. Qe2 {[%clk 0:02:56]}  Rd8 {[%clk 0:02:23]} 11. Bg5 {[%clk 0:02:49]}  h6 {[%clk 0:02:22]} 12. Bh4 {[%clk 0:02:49]}  g5 {[%clk 0:02:16]} 13. Bg3 {[%clk 0:02:49]}  Nh5 {[%clk 0:02:16]} 14. Rfd1 {[%clk 0:02:48]}  Bg4 {[%clk 0:02:09]} 15. h3 {[%clk 0:02:47]}  Nxg3 {[%clk 0:02:07]} 16. fxg3 {[%clk 0:02:46]}  Be6 {[%clk 0:02:07]} 17. Ne3 {[%clk 0:02:46]}  Rd7 {[%clk 0:01:58]} 18. Bc4 {[%clk 0:02:43]}  Rad8 {[%clk 0:01:51]} 19. Bxe6 {[%clk 0:02:43]}  fxe6 {[%clk 0:01:48]} 20. Rxd7 {[%clk 0:02:43]}  Rxd7 {[%clk 0:01:47]} 21. Rd1 {[%clk 0:02:44]}  Rxd1+ {[%clk 0:01:46]} 22. Qxd1 {[%clk 0:02:44]}  Qc5 {[%clk 0:01:47]} 23. Kf2 {[%clk 0:02:42]}  Qb6 {[%clk 0:01:41]} 24. Qb3 {[%clk 0:02:41]}  Kf7 {[%clk 0:01:37]} 25. Ke2 {[%clk 0:02:41]}  Qa6+ {[%clk 0:01:07]} 26. Qc4 {[%clk 0:02:40]}  Qb6 {[%clk 0:01:07]} 27. b4 {[%clk 0:02:40]}  a6 {[%clk 0:01:03]} 28. a4 {[%clk 0:02:39]}  Bf6 {[%clk 0:00:49]} 29. Nf5 {[%clk 0:02:36]}  h5 {[%clk 0:00:43]} 30. g4 {[%clk 0:02:37]}  h4 {[%clk 0:00:33]} 31. a5 {[%clk 0:02:36]}  Qb5 {[%clk 0:00:28]} 32. Qxb5 {[%clk 0:02:35]}  axb5 {[%clk 0:00:29]} 33. Ne3 {[%clk 0:02:35]}  Na7 {[%clk 0:00:27]} 34. c4 {[%clk 0:02:34]}  Ke7 {[%clk 0:00:21]} 35. cxb5 {[%clk 0:02:32]}  Nxb5 {[%clk 0:00:22]} 36. Nc4 {[%clk 0:02:33]}  Nd4+ {[%clk 0:00:21]} 37. Nxd4 {[%clk 0:02:33]}  exd4 {[%clk 0:00:22]} 38. b5 {[%clk 0:02:33]}  Kd7 {[%clk 0:00:20]} 39. e5 {[%clk 0:02:28]}  Be7 {[%clk 0:00:20]} 40. Kd3 {[%clk 0:02:29]}  Bc5 {[%clk 0:00:20]} 41. Nd2 {[%clk 0:02:29]}  Bb4 {[%clk 0:00:20]} 42. Nb3 {[%clk 0:02:29]}  c5 {[%clk 0:00:20]} 43. bxc6+ {[%clk 0:02:28]}  Kxc6 {[%clk 0:00:21]} 44. Kc4 {[%clk 0:02:26]}  Bc3 {[%clk 0:00:21]} 45. Nc5 {[%clk 0:02:25]}  Bd2 {[%clk 0:00:10]} 46. Nxe6 {[%clk 0:02:24]}  Bxa5 {[%clk 0:00:09]} 47. Nxg5 {[%clk 0:02:23]}  Bc3 {[%clk 0:00:10]} 48. Nf3 {[%clk 0:02:18]}  b5+ {[%clk 0:00:11]} 49. Kd3 {[%clk 0:02:19]}  Kd5 {[%clk 0:00:10]} 50. g5 {[%clk 0:02:19]}  b4 {[%clk 0:00:10]} 51. g6 {[%clk 0:02:20]}  Ke6 {[%clk 0:00:09]} 52. Nxd4+ {[%clk 0:02:20]}  Kxe5 {[%clk 0:00:09]} 53. g7 {[%clk 0:02:20]}  Bxd4 {[%clk 0:00:05]} 54. g8=Q {[%clk 0:02:21]} 1-0

[Event "January 2 Late 2024"]
[Site "https://www.chess.com"]
[Date "2024.01.02"]
[Round "3"]
[White "Iturrizaga Bonelli, Eduardo"]
[Black "Shuvalov, Evgenij"]
[Result "1-0"]
[Board "70"]
[TimeControl "180+1"]
[WhiteFideId "3901211"]
[BlackFideId "4187237"]
[WhiteElo "2971"]
[BlackElo "2506"]
[WhiteTeam "ESP"]
[BlackTeam "FID"]
[WhiteClock "0:00:36"]
[BlackClock "0:00:00"]

1. c4 {[%clk 0:03:00]}  Nf6 {[%clk 0:02:58]} 2. g3 {[%clk 0:03:01]}  c6 {[%clk 0:02:58]} 3. Nf3 {[%clk 0:03:01]}  d5 {[%clk 0:02:56]} 4. b3 {[%clk 0:03:01]}  g6 {[%clk 0:02:56]} 5. Bb2 {[%clk 0:03:02]}  Bg7 {[%clk 0:02:56]} 6. Bg2 {[%clk 0:03:02]}  Qb6 {[%clk 0:02:56]} 7. Qc2 {[%clk 0:02:55]}  O-O {[%clk 0:02:54]} 8. O-O {[%clk 0:02:55]}  Nbd7 {[%clk 0:02:47]} 9. Nc3 {[%clk 0:02:53]}  a5 {[%clk 0:02:36]} 10. d4 {[%clk 0:02:52]}  Qa6 {[%clk 0:02:32]} 11. Ne5 {[%clk 0:02:40]}  Nxe5 {[%clk 0:02:22]} 12. dxe5 {[%clk 0:02:41]}  Ng4 {[%clk 0:02:22]} 13. cxd5 {[%clk 0:02:40]}  Nxe5 {[%clk 0:02:17]} 14. dxc6 {[%clk 0:02:40]}  bxc6 {[%clk 0:02:10]} 15. Rac1 {[%clk 0:02:38]}  Bf5 {[%clk 0:02:08]} 16. Be4 {[%clk 0:02:37]}  Bh3 {[%clk 0:02:04]} 17. Rfd1 {[%clk 0:02:36]}  Rad8 {[%clk 0:01:59]} 18. Na4 {[%clk 0:02:36]}  Rd6 {[%clk 0:01:48]} 19. Rxd6 {[%clk 0:02:27]}  exd6 {[%clk 0:01:48]} 20. Bg2 {[%clk 0:02:27]}  Bxg2 {[%clk 0:01:46]} 21. Kxg2 {[%clk 0:02:28]}  c5 {[%clk 0:01:41]} 22. Rd1 {[%clk 0:02:14]}  Qc6+ {[%clk 0:01:37]} 23. Kg1 {[%clk 0:02:14]}  Re8 {[%clk 0:01:33]} 24. Nc3 {[%clk 0:02:09]}  c4 {[%clk 0:00:55]} 25. Nd5 {[%clk 0:02:09]}  cxb3 {[%clk 0:00:51]} 26. Qxb3 {[%clk 0:02:10]}  Qc4 {[%clk 0:00:41]} 27. Qxc4 {[%clk 0:02:01]}  Nxc4 {[%clk 0:00:41]} 28. Bxg7 {[%clk 0:02:02]}  Kxg7 {[%clk 0:00:41]} 29. e3 {[%clk 0:02:00]}  Rb8 {[%clk 0:00:38]} 30. Nc3 {[%clk 0:01:44]}  Rb2 {[%clk 0:00:34]} 31. Rd4 {[%clk 0:01:45]}  Ne5 {[%clk 0:00:20]} 32. Rxd6 {[%clk 0:01:45]}  Rc2 {[%clk 0:00:19]} 33. Ne4 {[%clk 0:01:15]}  Rxa2 {[%clk 0:00:17]} 34. Rd5 {[%clk 0:01:14]}  Nf3+ {[%clk 0:00:16]} 35. Kg2 {[%clk 0:01:14]}  Ne1+ {[%clk 0:00:16]} 36. Kf1 {[%clk 0:01:14]}  Nf3 {[%clk 0:00:16]} 37. h4 {[%clk 0:01:14]}  a4 {[%clk 0:00:16]} 38. Rd7 {[%clk 0:01:13]}  a3 {[%clk 0:00:14]} 39. Kg2 {[%clk 0:01:11]}  Ne5 {[%clk 0:00:12]} 40. Ra7 {[%clk 0:01:08]}  h6 {[%clk 0:00:11]} 41. Nd6 {[%clk 0:01:01]}  Kf6 {[%clk 0:00:09]} 42. Ra6 {[%clk 0:01:00]}  Ke7 {[%clk 0:00:09]} 43. Nb5 {[%clk 0:01:00]}  Nc4 {[%clk 0:00:09]} 44. Kf3 {[%clk 0:00:55]}  Nd2+ {[%clk 0:00:06]} 45. Kf4 {[%clk 0:00:54]}  Nc4 {[%clk 0:00:07]} 46. f3 {[%clk 0:00:53]}  Ra1 {[%clk 0:00:07]} 47. e4 {[%clk 0:00:50]}  a2 {[%clk 0:00:07]} 48. Nc3 {[%clk 0:00:51]}  Rc1 {[%clk 0:00:04]} 49. Nd5+ {[%clk 0:00:51]}  Kd7 {[%clk 0:00:04]} 50. Rxa2 {[%clk 0:00:50]}  Rf1 {[%clk 0:00:01]} 51. Ra7+ {[%clk 0:00:47]}  Ke8 {[%clk 0:00:02]} 52. e5 {[%clk 0:00:44]}  Nd2 {[%clk 0:00:01]} 53. Nf6+ {[%clk 0:00:44]}  Kd8 {[%clk 0:00:01]} 54. Rd7+ {[%clk 0:00:35]}  Kc8 {[%clk 0:00:00]} 55. Rxd2 {[%clk 0:00:36]} 1-0